bitfinex/quotes_SOLUSD_20250305
["timestamp","ask_amount","ask_price","bid_price","bid_amount"]
[1741142171461,218.1,143.94,143.89,52.87289797]
[1741142171687,218.1,143.94,143.9,52.87289797]
[1741142171877,1.6449,143.95,143.91,52.87289797]
[1741142172195,0.03,143.95,143.93,52.87289797]
[1741142172559,0.03,143.95,143.92,52.87289797]
[1741142172863,0.03,143.95,143.91,52.87289797]
[1741142173068,0.03,143.95,143.92,52.87289797]
[1741142173988,0.03,143.95,143.94,52.87289797]
[1741142174154,0.03,143.95,143.92,52.87289797]
[1741142174463,0.03,143.95,143.94,52.87289797]
[1741142176187,0.03,143.95,143.94,53.15722111]
[1741142176357,0.03,143.95,143.94,114.24107617]
[1741142176560,0.03,143.95,143.94,121.18837617]
[1741142177267,0.03,144.05,144.03,52.87289797]
[1741142177888,0.03,144.05,144.0,52.87289797]
[1741142178090,52.87289797,144.03,143.97,52.87289797]
[1741142178394,52.87289797,144.01,143.95,52.87289797]
[1741142178592,59.81729797,144.0,143.94,52.87289797]
[1741142178896,52.87289797,143.98,143.92,52.87289797]
[1741142179060,52.87289797,143.97,143.91,52.87289797]
[1741142179256,81.8,143.96,143.91,52.87289797]
[1741142179478,52.87289797,143.94,143.85,113.95675303]
[1741142179673,52.87289797,143.94,143.88,52.87289797]
[1741142180199,81.8,143.95,143.91,52.87289797]
[1741142180574,1.5761,143.96,143.92,52.87289797]
[1741142180903,8.5225,143.96,143.93,52.87289797]
[1741142181279,8.5225,143.96,143.86,314.14216157]
[1741142181280,81.8,143.99,143.94,52.87289797]
[1741142181479,81.8,143.98,143.94,52.87289797]
[1741142181897,88.7454,143.98,143.94,52.87289797]
[1741142182281,81.8,143.98,143.95,52.87289797]
[1741142182582,81.8,143.98,143.93,52.87289797]
[1741142182912,1.5904,143.93,143.84,0.033]
[1741142183122,52.87289797,143.89,143.84,0.033]
[1741142183299,52.87289797,143.9,143.84,0.033]
[1741142183489,270.97289797,143.91,143.84,52.90589797]
[1741142183803,5.88,143.92,143.88,52.87289797]
[1741142184180,5.88,143.92,143.87,52.87289797]
[1741142184988,59.82309797,143.88,143.84,0.033]
[1741142185299,52.87289797,143.85,143.84,0.033]
[1741142185502,52.87289797,143.86,143.84,0.033]
[1741142185704,218.1,143.87,143.84,0.033]
[1741142186003,6.9498,143.89,143.84,52.90589797]
[1741142186210,81.8,143.9,143.86,52.87289797]
[1741142186387,81.8,143.9,143.88,52.87289797]
[1741142186706,88.7483,143.92,143.89,52.87289797]
[1741142186886,88.7483,143.92,143.86,52.87289797]
[1741142186887,52.87289797,143.91,143.86,52.87289797]
[1741142187092,52.87289797,143.91,143.85,52.87289797]
[1741142187287,81.8,143.9,143.85,52.87289797]
[1741142187901,134.67289797,143.89,143.84,0.033]
[1741142188282,52.87289797,143.88,143.84,0.033]
[1741142188486,52.87289797,143.86,143.84,0.033]
[1741142188801,81.8,143.86,143.84,0.033]
[1741142188983,141.62449797,143.85,143.84,0.033]
[1741142189186,218.1,143.84,143.81,0.033]
[1741142189412,52.87289797,143.82,143.81,0.033]
[1741142190909,59.82599797,143.82,143.81,0.033]
[1741142191425,6.9531,143.82,143.81,0.033]
[1741142191703,52.87289797,143.78,143.77,0.033]
[1741142191910,52.87289797,143.8,143.77,0.033]
[1741142192116,52.87289797,143.79,143.77,0.033]
[1741142192289,52.87289797,143.78,143.77,0.033]
[1741142192609,52.87289797,143.79,143.77,0.033]
[1741142192811,52.87289797,143.78,143.77,0.033]
[1741142192992,59.82789797,143.78,143.77,0.033]
[1741142194111,189.17289797,143.81,143.77,0.033]
[1741142194309,136.3,143.81,143.77,0.033]
[1741142194486,189.17289797,143.81,143.77,0.033]
[1741142194688,136.3,143.81,143.77,0.033]
[1741142194883,136.3,143.81,143.77,52.90589797]
[1741142195204,136.3,143.81,143.78,52.87289797]
[1741142195402,136.3,143.81,143.77,52.90589797]
[1741142195608,52.87289797,143.83,143.77,52.90589797]
[1741142195805,81.8,143.84,143.8,52.87289797]
[1741142196113,59.82419797,143.86,143.8,52.87289797]
[1741142196315,52.87289797,143.84,143.78,59.50969797]
[1741142196501,52.87289797,143.83,143.77,52.90589797]
[1741142197120,51.57061639,143.82,143.77,0.033]
[1741142197323,52.87289797,143.79,143.77,0.033]
[1741142198408,52.87289797,143.78,143.77,0.033]
[1741142198898,134.67289797,143.8,143.77,0.033]
[1741142199095,218.1,143.82,143.77,52.90589797]
[1741142199414,81.8,143.82,143.78,52.87289797]
[1741142200819,81.8,143.82,143.81,52.87289797]
[1741142201030,88.7502,143.88,143.81,52.87289797]
[1741142201195,190.70219797,143.9,143.84,52.87289797]
[1741142201398,52.87289797,143.89,143.83,52.87289797]
[1741142201629,52.87289797,143.88,143.83,52.87289797]
[1741142202024,61.35179797,143.9,143.84,52.87289797]
[1741142202508,52.87289797,143.88,143.83,52.87289797]
[1741142202702,52.87289797,143.89,143.84,52.87289797]
[1741142202902,52.87289797,143.88,143.82,52.87289797]
[1741142203131,6.9545,143.79,143.74,0.033]
[1741142203332,20.0,143.77,143.74,0.033]
[1741142203629,52.87289797,143.77,143.74,0.033]
[1741142203811,52.87289797,143.78,143.74,0.033]
[1741142204011,6.06,143.79,143.74,52.90589797]
[1741142204328,6.06,143.79,143.74,0.033]
[1741142204531,6.06,143.79,143.75,52.87289797]
[1741142205028,89.4786,143.84,143.78,52.87289797]
[1741142205029,136.22729797,143.84,143.78,52.87289797]
[1741142205236,1.5544,143.84,143.79,52.87289797]
[1741142205606,52.87289797,143.86,143.8,52.87289797]
[1741142205806,1.5997,143.89,143.84,52.87289797]
[1741142206542,52.87289797,143.92,143.86,52.87289797]
[1741142206715,190.81479797,143.94,143.88,52.87289797]
[1741142207240,1.6419,143.94,143.89,52.87289797]
[1741142207536,0.03,143.95,143.9,52.87289797]
[1741142207941,0.03,143.95,143.92,52.87289797]
[1741142208112,0.03,143.95,143.93,52.87289797]
[1741142208302,0.03,143.95,143.94,52.87289797]
[1741142209035,0.03,143.95,143.93,52.87289797]
[1741142209436,0.03,143.95,143.92,52.87289797]
[1741142209751,0.03,143.95,143.93,52.87289797]
[1741142209917,0.03,143.95,143.94,52.87289797]
[1741142210926,0.03,143.95,143.93,52.87289797]
[1741142211327,0.03,143.95,143.94,52.87289797]
[1741142211655,0.03,143.95,143.93,52.87289797]
[1741142212015,0.03,143.95,143.91,52.87289797]
[1741142212646,0.03,143.95,143.9,52.87289797]
[1741142213741,52.90289797,143.95,143.89,52.87289797]
[1741142214123,52.87289797,143.94,143.88,113.95675303]
[1741142214553,52.87289797,143.93,143.87,52.87289797]
[1741142214853,52.87289797,143.92,143.86,120.50085303]
[1741142215052,52.87289797,143.91,143.86,67.62795506]
[1741142215222,52.87289797,143.91,143.84,52.87289797]
[1741142215724,52.87289797,143.91,143.85,52.87289797]
[1741142216046,81.8,143.93,143.87,52.87289797]
[1741142216258,1.5322,143.95,143.88,52.87289797]
[1741142216428,1.5322,143.95,143.89,52.87289797]
[1741142216429,54.40509797,143.95,143.89,52.87289797]
[1741142216621,52.87289797,143.94,143.88,52.87289797]
[1741142216829,1.5322,143.95,143.89,52.87289797]
[1741142217022,0.03,143.95,143.89,52.87289797]
[1741142217218,0.03,143.95,143.9,52.87289797]
[1741142217527,52.87289797,143.94,143.88,52.87289797]
[1741142218825,52.90289797,143.95,143.89,52.87289797]
[1741142219249,0.03,143.95,143.9,52.87289797]
[1741142219634,52.90289797,143.95,143.89,52.87289797]
[1741142219950,52.90289797,143.95,143.9,52.87289797]
[1741142219951,0.03,143.95,143.9,52.87289797]
[1741142220453,52.90289797,143.95,143.87,61.3681782]
[1741142220626,52.90289797,143.95,143.89,52.87289797]
[1741142221127,52.87289797,143.94,143.88,52.87289797]
[1741142221458,52.90289797,143.95,143.89,59.82259797]
[1741142221662,0.03,143.95,143.92,52.87289797]
[1741142221835,0.03,143.95,143.93,52.87289797]
[1741142222158,0.03,143.95,143.94,52.87289797]
[1741142222557,0.03,143.95,143.94,53.15722111]
[1741142223027,0.0001,143.95,143.94,114.24107617]
[1741142223651,0.0001,143.97,143.96,20.28432314]
[1741142223857,0.0001,143.97,143.96,134.24107617]
[1741142224235,0.0001,143.97,143.96,187.11397414]
[1741142224449,0.03,144.05,143.97,2.28432314]
[1741142224652,0.03,144.05,144.04,53.15722111]
[1741142224972,0.03,144.05,144.04,114.24107617]
[1741142225675,0.03,144.05,144.04,121.18357617]
[1741142226060,0.03,144.05,144.04,174.05647414]
[1741142226256,0.03,144.1,144.04,174.05647414]
[1741142226257,0.03,144.1,144.08,0.28432314]
[1741142226568,0.03,144.1,144.09,53.15722111]
[1741142227554,0.03,144.19,144.14,6.9376]
[1741142227750,0.03,144.19,144.17,52.87289797]
[1741142228149,0.03,144.19,144.15,52.87289797]
[1741142228365,0.03,144.19,144.16,52.87289797]
[1741142228752,0.03,144.19,144.17,52.87289797]
[1741142229065,0.03,144.19,144.18,52.87289797]
[1741142229980,0.03,144.19,144.16,52.87289797]
[1741142230157,0.03,144.19,144.17,52.87289797]
[1741142230685,0.03,144.19,144.13,52.87289797]
[1741142230854,52.87289797,144.18,144.08,6.9405]
[1741142231171,52.87289797,144.18,144.12,52.87289797]
[1741142231350,0.03,144.19,144.13,52.87289797]
[1741142231555,52.87289797,144.17,144.08,61.08385506]
[1741142231754,0.03,144.19,144.1,52.87289797]
[1741142231755,59.80959797,144.16,144.1,52.87289797]
[1741142231976,59.80909797,144.17,144.11,52.87289797]
[1741142232180,59.80909797,144.17,144.08,6.9405]
[1741142232387,59.80909797,144.17,144.11,52.87289797]
[1741142232761,59.80909797,144.17,144.1,52.87289797]
[1741142232762,52.87289797,144.16,144.1,52.87289797]
[1741142233091,141.60909797,144.17,144.11,52.87289797]
[1741142233594,52.87289797,144.16,144.1,52.87289797]
[1741142233774,141.61009797,144.15,144.09,52.87289797]
[1741142234089,52.87289797,144.14,144.07,61.08385506]
[1741142234387,81.8,144.14,144.08,52.87289797]
[1741142234692,81.8,144.14,144.1,52.87289797]
[1741142234894,8.5755,144.15,144.09,52.87289797]
[1741142235373,61.44839797,144.15,144.09,52.87289797]
[1741142235777,1.6383,144.15,144.1,52.87289797]
[1741142236178,8.5755,144.15,144.1,52.87289797]
[1741142236394,1.6383,144.15,144.1,52.87289797]
[1741142236579,1.6383,144.15,144.11,52.87289797]
[1741142237093,52.87289797,144.14,144.08,52.87289797]
[1741142237297,52.87289797,144.13,144.06,61.08385506]
[1741142237593,52.87289797,144.12,144.06,52.87289797]
[1741142237780,6.9391,144.11,144.06,52.87289797]
[1741142238100,6.9391,144.11,144.05,52.87289797]
[1741142238287,52.87289797,144.09,144.03,113.95675303]
[1741142238468,52.87289797,144.09,144.03,52.87289797]
[1741142238674,6.9391,144.11,144.04,52.87289797]
[1741142238882,59.81199797,144.11,144.05,52.87289797]
[1741142239096,6.9391,144.11,144.06,52.87289797]
[1741142239492,141.61149797,144.12,144.06,52.87289797]
[1741142239695,52.87289797,144.11,144.05,52.87289797]
[1741142239889,6.9396,144.1,144.04,52.87289797]
[1741142240219,141.61159797,144.12,144.05,52.87289797]
[1741142240512,141.61159797,144.12,144.06,52.87289797]
[1741142240692,52.87289797,144.13,144.07,52.87289797]
[1741142240895,1.6683,144.15,144.1,52.87289797]
[1741142241106,1.6683,144.15,144.07,61.3681782]
[1741142241107,61.47849797,144.15,144.09,52.87289797]
[1741142241408,52.87289797,144.12,144.06,52.87289797]
[1741142241608,52.87289797,144.11,144.05,52.87289797]
[1741142241786,59.81249797,144.1,144.04,52.87289797]
[1741142242408,134.67289797,144.12,144.06,52.87289797]
[1741142242619,141.61159797,144.12,144.06,52.87289797]
[1741142243237,52.87289797,144.1,144.04,52.87289797]
[1741142243513,52.87289797,144.07,144.01,52.87289797]
[1741142243687,81.8,144.09,144.01,52.87289797]
[1741142243884,6.9415,144.06,144.01,52.87289797]
[1741142244682,88.7388,144.12,144.05,52.87289797]
[1741142244924,81.8,144.12,144.07,52.87289797]
[1741142245813,52.87289797,144.1,144.04,52.87289797]
[1741142246890,52.87289797,144.08,144.03,52.87289797]
[1741142247103,52.87289797,144.08,144.02,59.81619797]
[1741142247307,52.87289797,144.05,143.99,61.08385506]
[1741142247509,52.87289797,144.06,144.0,52.87289797]
[1741142247713,270.97289797,144.09,144.04,52.87289797]
[1741142247891,81.8,144.09,144.05,52.87289797]
[1741142248514,134.67289797,144.09,144.04,52.87289797]
[1741142249228,81.8,144.09,144.05,52.87289797]
[1741142249519,189.17289797,144.12,144.06,52.87289797]
[1741142249719,52.87289797,144.11,144.05,52.87289797]
[1741142250098,52.87289797,144.06,144.01,59.81679797]
[1741142250301,52.87289797,144.06,144.0,120.90095303]
[1741142250601,81.8,144.09,144.0,68.02805506]
[1741142250602,52.87289797,144.05,144.0,68.02805506]
[1741142251110,52.87289797,144.04,143.98,59.81819797]
[1741142251418,52.87289797,144.04,143.98,52.87289797]
[1741142251720,81.8,144.05,144.03,52.87289797]
[1741142251918,134.67289797,144.09,144.04,52.87289797]
[1741142252124,81.8,144.09,144.04,52.87289797]
[1741142252427,1.6264,144.1,144.06,52.87289797]
[1741142252623,54.49929797,144.1,144.05,52.87289797]
[1741142252791,54.49929797,144.1,144.04,52.87289797]
[1741142253314,1.6264,144.1,144.07,52.87289797]
[1741142253500,81.8,144.12,144.07,52.87289797]
[1741142253714,52.87289797,144.09,144.04,61.08385506]
[1741142254026,52.87289797,144.08,144.02,52.87289797]
[1741142254208,52.87289797,144.07,144.01,59.81639797]
[1741142254925,52.87289797,144.07,144.01,6.9435]
[1741142255130,52.87289797,144.04,144.0,0.033]
[1741142255307,52.87289797,144.02,144.0,0.033]
[1741142255623,52.87289797,144.03,144.0,0.033]
[1741142256012,81.8,144.04,144.0,0.033]
[1741142256214,134.67289797,144.04,144.0,0.033]
[1741142256425,141.61549797,144.04,144.0,0.033]
[1741142256723,81.8,144.03,144.0,0.033]
[1741142257517,134.67289797,144.03,144.0,0.033]
[1741142258203,141.61599797,144.03,144.0,0.033]
[1741142258403,134.67289797,144.03,144.0,0.033]
[1741142258703,1.5643,144.05,144.0,52.90589797]
[1741142258903,1.5643,144.05,144.01,52.87289797]
[1741142259604,1.5643,144.05,144.02,52.87289797]
[1741142260205,54.43969797,144.09,144.03,52.87289797]
[1741142260424,54.43969797,144.09,144.05,52.87289797]
[1741142260425,1.5668,144.09,144.05,52.87289797]
[1741142260729,1.5668,144.09,144.05,32.47230693]
[1741142260906,1.5668,144.09,144.04,32.47230693]
[1741142261114,32.47230693,144.07,144.01,32.47230693]
[1741142261319,32.47230693,144.06,144.0,100.53316199]
[1741142261625,32.47230693,144.06,144.0,39.44930693]
[1741142262430,32.47230693,144.07,144.01,32.47230693]
[1741142263412,32.47230693,144.04,144.0,0.033]
[1741142264430,114.27230693,144.06,144.0,39.44950693]
[1741142264629,81.8,144.06,144.01,32.47230693]
[1741142265017,32.47230693,144.04,144.0,0.033]
[1741142265221,88.7416,144.06,144.0,32.50530693]
[1741142265222,121.21390693,144.06,144.0,32.50530693]
[1741142265538,114.27230693,144.06,144.0,32.50530693]
[1741142265721,32.47230693,144.05,144.0,0.033]
[1741142266450,114.27230693,144.06,144.0,32.50530693]
[1741142266748,121.21390693,144.06,144.0,39.44950693]
[1741142266910,81.8,144.06,144.01,32.47230693]
[1741142267110,121.21390693,144.06,144.0,0.033]
[1741142267336,32.47230693,144.05,144.0,0.033]
[1741142268416,88.7416,144.06,144.0,0.033]
[1741142268417,32.47230693,144.04,144.0,0.033]
[1741142268608,6.9429,144.03,144.0,0.033]
[1741142269730,81.8,144.05,144.0,32.50530693]
[1741142269731,88.7423,144.05,144.0,32.50530693]
[1741142269933,121.21460693,144.05,144.0,0.033]
[1741142270132,32.47230693,144.02,144.0,0.033]
[1741142270328,32.47230693,144.01,144.0,0.033]
[1741142270547,33.99760693,144.01,144.0,0.033]
[1741142270753,40.94150693,144.01,144.0,0.033]
[1741142271842,32.47230693,143.96,143.9,32.47230693]
[1741142272025,32.47230693,143.94,143.88,32.50530693]
[1741142272215,32.47230693,143.93,143.88,0.033]
[1741142272419,218.1,143.97,143.89,32.47230693]
[1741142272615,81.8,143.96,143.93,32.47230693]
[1741142272921,32.47230693,143.97,143.92,32.47230693]
[1741142273337,32.47230693,143.97,143.91,32.47230693]
[1741142273644,32.47230693,143.95,143.89,100.50576199]
[1741142273830,32.47230693,143.94,143.88,32.50530693]
[1741142274722,32.47230693,143.95,143.9,32.47230693]
[1741142274920,114.27230693,143.97,143.91,32.47230693]
[1741142275232,121.21820693,143.97,143.91,32.47230693]
[1741142275425,114.27230693,143.97,143.91,32.47230693]
[1741142275623,81.8,143.97,143.92,32.47230693]
[1741142275822,81.8,143.97,143.88,24.3586]
[1741142275823,114.27230693,144.0,143.94,32.47230693]
[1741142276027,81.8,144.0,143.96,32.47230693]
[1741142276631,88.7445,144.0,143.95,32.47230693]
[1741142276838,32.47230693,143.99,143.93,32.47230693]
[1741142277055,32.47230693,143.98,143.92,39.42030693]
[1741142277260,32.47230693,143.99,143.93,32.47230693]
[1741142278162,39.41720693,143.99,143.93,32.47230693]
[1741142278744,32.47230693,143.99,143.93,39.42000693]
[1741142279149,114.27230693,144.0,143.94,32.47230693]
[1741142279355,121.21680693,144.0,143.94,32.47230693]
[1741142280062,114.27230693,144.0,143.94,32.47230693]
[1741142280237,88.7444,144.0,143.95,32.47230693]
[1741142280433,218.1,143.99,143.91,6.9487]
[1741142280760,114.27230693,143.99,143.93,32.47230693]
[1741142280932,81.8,143.99,143.94,32.47230693]
[1741142281132,81.8,143.99,143.91,68.03255506]
[1741142281133,81.8,143.99,143.96,32.47230693]
[1741142281337,81.8,143.99,143.94,32.47230693]
[1741142281548,81.8,143.99,143.95,32.47230693]
[1741142281752,40.94160693,144.01,143.96,32.47230693]
[1741142281753,1.5253,144.01,143.96,32.47230693]
[1741142282558,8.4693,144.01,143.96,32.47230693]
[1741142282744,40.94160693,144.01,143.95,32.47230693]
[1741142282945,1.5253,144.01,143.96,32.47230693]
[1741142283171,8.4693,144.01,143.96,32.47230693]
[1741142283335,40.94160693,144.01,143.95,32.47230693]
[1741142283534,32.47230693,144.0,143.93,6.9478]
[1741142283728,32.47230693,144.0,143.94,32.47230693]
[1741142283937,6.9445,144.0,143.95,32.47230693]
[1741142284163,32.47230693,143.98,143.92,100.50426199]
[1741142284359,81.8,143.99,143.95,32.47230693]
[1741142284565,1.5253,144.01,143.96,32.47230693]
[1741142284747,1.5253,144.01,143.97,32.47230693]
[1741142285352,8.4693,144.01,143.95,32.47230693]
[1741142285531,32.47230693,143.99,143.93,32.47230693]
[1741142285731,32.47230693,144.0,143.93,32.47230693]
[1741142286028,39.41690693,144.0,143.94,32.47230693]
[1741142286628,1.5253,144.01,143.95,32.47230693]
[1741142286863,1.5253,144.01,143.96,32.47230693]
[1741142287353,32.47230693,144.04,143.98,32.47230693]
[1741142287575,88.7421,144.05,143.99,32.47230693]
[1741142287742,121.21440693,144.05,143.99,32.47230693]
[1741142288243,32.47230693,144.04,143.98,32.47230693]
[1741142288871,32.47230693,144.03,143.97,32.47230693]
[1741142289046,32.47230693,143.99,143.94,6.9473]
[1741142289242,32.47230693,144.0,143.94,6.9473]
[1741142289449,0.03,144.01,143.96,32.47230693]
[1741142289665,0.03,144.01,143.95,32.47230693]
[1741142289841,32.50230693,144.01,143.94,39.41960693]
[1741142290044,32.47230693,143.99,143.93,39.45300693]
[1741142290362,32.50230693,144.01,143.95,32.47230693]
[1741142291242,0.03,144.01,143.95,32.47230693]
[1741142291440,32.50230693,144.01,143.95,32.47230693]
[1741142292568,20.35295425,144.01,143.95,20.32295425]
[1741142293368,0.03,144.01,143.95,20.32295425]
[1741142293545,0.03,144.01,143.96,20.32295425]
[1741142294538,0.03,144.01,144.0,20.32295425]
[1741142294739,0.03,144.01,143.98,6.9454]
[1741142294740,0.03,144.01,143.99,20.32295425]
[1741142295442,0.03,144.01,143.98,6.9454]
[1741142295789,0.03,144.01,144.0,20.32295425]
[1741142296253,0.03,144.01,143.97,20.32295425]
[1741142296765,0.03,144.01,143.96,20.32295425]
[1741142296971,0.03,144.01,143.98,20.32295425]
[1741142297473,0.03,144.01,144.0,20.32295425]
[1741142298670,0.03,144.01,144.0,27.26735425]
[1741142298849,0.03,144.01,144.0,20.32295425]
[1741142300068,0.03,144.01,143.99,20.32295425]
[1741142300552,0.03,144.01,143.97,20.32295425]
[1741142300960,0.03,144.01,144.0,0.033]
[1741142301162,20.35295425,144.01,144.0,0.033]
[1741142301379,0.03,144.01,144.0,0.033]
[1741142301680,20.35295425,144.01,144.0,0.033]
[1741142301882,27.29685425,144.01,144.0,0.033]
[1741142302078,6.9739,144.01,144.0,0.033]
[1741142302461,27.29685425,144.01,144.0,0.033]
[1741142304092,0.03,144.01,144.0,0.033]
[1741142305087,0.03,144.01,144.0,20.35595425]
[1741142305383,0.03,144.01,144.0,0.033]
[1741142305681,0.03,144.01,144.0,20.35595425]
[1741142305891,0.03,144.01,144.0,20.64027739]
[1741142306077,0.03,144.01,144.0,88.66853245]
[1741142306767,0.03,144.1,144.01,0.28432314]
[1741142306973,0.03,144.1,144.08,20.32295425]
[1741142307463,0.03,144.1,144.09,20.32295425]
[1741142307870,0.03,144.1,144.08,20.32295425]
[1741142308691,0.03,144.1,144.08,32.45466259]
[1741142309189,0.03,144.1,144.09,32.45466259]
[1741142309502,0.03,144.1,144.09,93.82284079]
[1741142310164,0.03,144.1,144.09,100.76294079]
[1741142311579,0.03,144.1,144.09,93.82284079]
[1741142312269,0.03,144.1,144.09,100.47861765]
[1741142312475,0.03,144.1,144.09,93.53851765]
[1741142312661,0.03,144.1,144.09,100.47861765]
[1741142313093,0.03,144.1,144.09,68.3082782]
[1741142313270,0.03,144.1,144.09,100.76294079]
[1741142313580,0.03,144.1,144.09,102.21959972]
[1741142314098,0.03,144.15,144.13,0.28432314]
[1741142314296,0.03,144.19,144.15,0.28432314]
[1741142314495,0.03,144.19,144.18,32.45466259]
[1741142314679,0.03,144.19,144.18,93.53851765]
[1741142315397,0.03,144.19,144.18,93.82284079]
[1741142315691,0.03,144.25,144.22,0.28432314]
[1741142315898,0.03,144.25,144.24,52.73898573]
[1741142316199,0.03,144.27,144.26,7.21622314]
[1741142316384,0.03,144.34,144.3,0.28432314]
[1741142316593,0.03,144.34,144.3,61.3681782]
[1741142316767,0.03,144.34,144.32,32.73898573]
[1741142317282,0.03,144.34,144.32,93.82284079]
[1741142317487,0.03,144.34,144.32,126.27750338]
[1741142317666,0.03,144.34,144.33,65.19364832]
[1741142317867,0.03,144.34,144.33,32.73898573]
[1741142318066,32.48466259,144.34,144.28,0.14216157]
[1741142318305,39.41276259,144.34,144.28,32.73898573]
[1741142318486,0.03,144.34,144.29,32.45466259]
[1741142318706,0.03,144.34,144.31,32.45466259]
[1741142318874,0.03,144.34,144.32,0.28432314]
[1741142319075,0.03,144.34,144.33,32.45466259]
[1741142319379,0.03,144.34,144.33,32.73898573]
[1741142319609,0.03,144.34,144.33,93.82284079]
[1741142319895,0.03,144.34,144.33,438.27750338]
[1741142320067,0.03,144.34,144.33,405.82284079]
[1741142320268,0.03,144.34,144.29,0.14216157]
[1741142320502,0.03,144.34,144.3,32.45466259]
[1741142320801,32.45466259,144.33,144.27,32.45466259]
[1741142320972,34.01626259,144.32,144.24,61.08385506]
[1741142321300,34.01626259,144.32,144.26,32.45466259]
[1741142321600,1.5616,144.32,144.27,32.45466259]
[1741142321771,32.45466259,144.31,144.25,32.45466259]
[1741142322104,115.81626259,144.32,144.26,32.45466259]
[1741142322301,122.74556259,144.32,144.26,32.45466259]
[1741142322603,83.3616,144.32,144.27,32.45466259]
[1741142322780,83.3616,144.32,144.25,32.45466259]
[1741142322781,32.45466259,144.31,144.25,32.45466259]
[1741142323705,32.45466259,144.3,144.24,32.45466259]
[1741142324277,32.45466259,144.29,144.23,32.45466259]
[1741142324674,32.45466259,144.28,144.22,32.45466259]
[1741142324995,1.5616,144.32,144.27,32.45466259]
[1741142325572,32.45466259,144.31,144.25,32.45466259]
[1741142325773,32.45466259,144.3,144.25,32.45466259]
[1741142326196,32.45466259,144.31,144.25,32.45466259]
[1741142326389,34.01626259,144.32,144.26,32.45466259]
[1741142326702,1.5616,144.32,144.28,32.45466259]
[1741142326996,0.03,144.34,144.31,32.45466259]
[1741142327778,0.03,144.34,144.33,32.73898573]
[1741142328389,0.03,144.34,144.33,93.82284079]
[1741142328598,0.03,144.34,144.33,100.75134079]
[1741142328801,0.03,144.34,144.33,133.20600338]
[1741142329707,0.03,144.34,144.33,100.75134079]
[1741142330503,0.03,144.34,144.33,133.20600338]
[1741142330702,0.0001,144.35,144.34,6.82182314]
[1741142331003,1.5702,144.45,144.38,0.28432314]
[1741142331174,1.0288492,144.49,144.44,32.45466259]
[1741142331378,1.0288492,144.49,144.45,32.45466259]
[1741142331605,39.37616259,144.48,144.42,32.45466259]
[1741142331799,32.45466259,144.45,144.39,32.45466259]
[1741142331974,32.45466259,144.44,144.39,32.45466259]
[1741142332174,32.45466259,144.42,144.36,32.45466259]
[1741142332601,34.02486259,144.42,144.36,32.45466259]
[1741142332798,1.5702,144.42,144.37,32.45466259]
[1741142332999,1.5702,144.42,144.34,93.53851765]
[1741142333000,34.02486259,144.42,144.36,32.45466259]
[1741142333327,1.5702,144.42,144.37,32.45466259]
[1741142333511,1.5702,144.42,144.39,32.45466259]
[1741142333811,122.77046259,144.47,144.41,32.45466259]
[1741142334101,32.45466259,144.45,144.39,32.45466259]
[1741142334301,32.45466259,144.46,144.4,32.45466259]
[1741142334600,122.77046259,144.47,144.41,32.45466259]
[1741142334802,32.45466259,144.45,144.39,32.45466259]
[1741142335006,90.3158,144.47,144.39,32.45466259]
[1741142335007,32.45466259,144.44,144.39,32.45466259]
[1741142335186,32.45466259,144.44,144.34,39.38266259]
[1741142335187,32.45466259,144.41,144.35,32.45466259]
[1741142335393,218.1,144.44,144.34,32.45466259]
[1741142335595,32.45466259,144.41,144.35,32.45466259]
[1741142335804,32.45466259,144.42,144.36,32.45466259]
[1741142336180,81.8,144.43,144.36,32.45466259]
[1741142336382,32.45466259,144.39,144.33,61.08385506]
[1741142336600,39.38076259,144.38,144.33,61.08385506]
[1741142336900,39.38076259,144.38,144.32,93.53851765]
[1741142337107,32.45466259,144.37,144.32,61.08385506]
[1741142337306,32.45466259,144.37,144.32,93.53851765]
[1741142337510,83.3639,144.39,144.35,32.45466259]
[1741142337680,83.3639,144.39,144.36,32.45466259]
[1741142337882,8.4895,144.39,144.35,32.45466259]
[1741142338080,8.4895,144.39,144.34,61.3681782]
[1741142338081,32.45466259,144.37,144.26,379.41525506]